{"text_format":"3","workbook":"xlsx","n_sheets":2,"sheets":["Budget","dropdown"],"not_rendered":{"images":1,"defined_names":3},"read":"whole","date_system":"1900"}

{"sheet":"Budget","index":0,"n_rows":66,"n_cols":9,"rows_kept":66,"merged":[[7,0,7,7],[10,0,10,7],[11,0,11,7],[13,0,13,6],[43,0,44,0]]}
[]
[]
[]
[]
["Betreibungsrechtliches Existenzminimum nach den"]
["Richtlinien der Konferenz der Betreibungs- und KonkursbeamtInnen"]
[]
["Die Berechnung des betreibungsrechtlichen Existenzminimums ist eine Ermessenssache."]
["Siehe das Stichwort «Einkommenspfändung»:"]
["https://www.schuldeninfo.ch/files/_documents/stichwoerter/einkommenspfaendung.pdf"]
["Wir haben die Tabelle nach bestem Wissen und Gewissen zusammengestellt, "]
["übernehmen aber keine Garantie für die Richtigkeit der Ergebnisse. "]
[]
["[NAME]"]
[]
["EINNAHMEN",null,null,"Mann ","Frau",null,"Total"]
["Nettoeinkommen inkl. Provisionen (Durchschnitt)",{"$nulls":5},{"$f":"ROUND(SUM(D17:E17)/5,2)*5","v":0}]
["Hereinkommende Erwachsenenalimente (+)*",{"$nulls":5},{"$f":"ROUND(SUM(D18:E18)/5,2)*5","v":0}]
["Andere Einnahmen",{"$nulls":5},{"$f":"ROUND(SUM(D19:E19)/5,2)*5","v":0}]
[" - Abgehende Alimentenzahlungen (-)**",{"$nulls":5},{"$f":"ROUND(SUM(D20:E20)/5,2)*5","v":0}]
[" - Besuchsrecht von Kindern(-)**",{"$nulls":5},{"$f":"ROUND(SUM(D21:E21)/5,2)*5","v":0}]
["Total Einkommen",null,null,{"$f":"SUM(D17:D21)","v":0},{"$f":"SUM(E17:E21)","v":0},null,{"$f":"SUM(G17:G21)","v":0}]
[]
["Einkommen in %",null,null,{"$f":"D22/$G$22","v":{"$error":"#DIV/0!"}},{"$f":"E22/$G$22","v":{"$error":"#DIV/0!"}},null,{"$f":"G22/$G$22","v":{"$error":"#DIV/0!"}}]
[]
["AUSGABEN",null,null,"Mann ","Frau",null,"Total"]
["Monatlicher Grundbetrag Erwachsene"]
["- Alleinstehend",{"$nulls":5},{"$f":"IF(B28>0,1200)+0","v":0}]
["- Alleinerziehend",{"$nulls":5},{"$f":"IF(B29>0,1350)+0","v":0}]
["- Ehepaar / eingetragene"]
["  Partnerschaft / Paar mit ",null,null,"Zutreffendes"]
["  Kindern",null,null,"ankreuzen",null,null,{"$f":"IF(B32>0,1700)+0","v":0}]
["- kinderlose, kostensenkende"]
["  Wohngemeinschaft i.d.R.",{"$nulls":5},{"$f":"IF(B34>0,850)+0","v":0}]
["Zuschlag Kinder",{"$nulls":7},"x"]
["- Anzahl Kinder bis 10 Jahre",{"$nulls":5},{"$f":"B36*400","v":0}]
["- Anzahl Kinder über 10 Jahre",{"$nulls":5},{"$f":"B37*600","v":0}]
["Weitere Faktoren"]
["Mietzins"]
["Heiz- und Nebenkosten"]
["Krankenkassenprämien"]
["Beiträge an Berufsverbände",{"$nulls":5},{"$f":"E42+D42","v":0}]
["Auswärtige Verpflegung",{"$nulls":5},{"$f":"E43+D43","v":0}]
["Erhöhter Nahrungsbedarf bei \nSchwerarbeit, Schicht- und Nachtarbeit"]
[{"$nulls":6},{"$f":"E45+D45","v":0}]
["Überdurchschnittlicher Kleiderverbrauch",{"$nulls":5},{"$f":"E46+D46","v":0}]
["Fahrten zum Arbeitsplatz",{"$nulls":5},{"$f":"E47+D47","v":0}]
["Kinderbetreuung"]
["Schulung der Kinder"]
["Jahresfranchise Krankenkasse"]
["Gesundheitskosten"]
["Weitere Faktoren"]
["Total betreibungsrechtliches Existenzminimum",{"$nulls":5},{"$f":"SUM(G27:G51)","v":0}]
[]
[{"$nulls":3},"Mann","Frau"]
["Anrechenbares Einkommen",null,null,{"$f":"D22","v":0},{"$f":"E22","v":0}]
["Anteil am Existenzminimum",null,null,{"$f":"G53*D24","v":{"$error":"#DIV/0!"}},{"$f":"G53*E24","v":{"$error":"#DIV/0!"}}]
["Pfändbare Quote",null,null,{"$f":"D56-D57","v":{"$error":"#DIV/0!"}},{"$f":"E56-E57","v":{"$error":"#DIV/0!"}}]
["eventuell zuzüglich 13. Monatslohn, Gratifikation usw."]
[]
["* Hereinkommende Kinderalimente werden nicht in diese Tabelle integriert."]
["Sie sind für das Kind bestimmt. Der «Zuschlag Kinder», Krankenkasse, "]
["Schulkosten usw. werden grundsätzlich aus dem Aliment bezahlt. "]
["Ein allfälliger Überschuss ist für das Kind bestimmt."]
[]
["** Es sind Minusbeträge zu erfassen."]

{"sheet":"dropdown","index":1,"n_rows":5,"n_cols":1,"rows_kept":5,"hidden":true}
["Bitte Haushaltsform wählen"]
["Grundbetrag für Alleinstehende"]
["Grundbetrag für Alleinerziehende"]
["Grundbetrag für Ehepaare; Paare mit Kindern; eingetragene Partnerschaften"]
["Grundbetrag für kinderlose kostendeckende Wohn- und Lebensgemeinschaften"]